bitfinex/quotes_BTCUSD_20220218
["timestamp","ask_amount","ask_price","bid_price","bid_amount"]
[1645183408324,0.00262416,40443.0,40441.0,0.11193466]
[1645183408749,0.00297906,40443.0,40441.0,0.11193466]
[1645183410353,0.00297906,40443.0,40442.0,0.002]
[1645183410556,0.00262416,40443.0,40442.0,0.002]
[1645183411652,0.00262416,40443.0,40441.0,0.11193466]
[1645183412701,0.00262416,40443.0,40441.0,0.06193466]
[1645183412702,0.0039858,40443.0,40441.0,0.06193466]
[1645183412903,0.0039858,40443.0,40440.0,0.071819]
[1645183412904,0.0534858,40443.0,40440.0,1.66e-06]
[1645183413101,0.0538407,40443.0,40440.0,1.66e-06]
[1645183413302,0.3,40442.0,40440.0,1.66e-06]
[1645183413502,0.3498549,40442.0,40440.0,1.66e-06]
[1645183413701,5.834e-05,40439.0,40436.0,0.002]
[1645183413903,5.834e-05,40439.0,40428.0,0.123691]
[1645183413904,0.23531039,40437.0,40428.0,0.123691]
[1645183414103,5.834e-05,40439.0,40431.0,0.00035237]
[1645183414700,0.27478084,40438.0,40431.0,0.06220137]
[1645183414902,0.27478084,40438.0,40431.0,0.00035237]
[1645183415102,0.48396116,40438.0,40430.0,0.001]
[1645183415400,0.48396116,40438.0,40431.0,0.00035237]
[1645183415401,0.19797318,40432.0,40431.0,0.00035237]
[1645183416252,0.19797318,40432.0,40430.0,0.001]
[1645183416453,0.19797318,40432.0,40429.0,0.00035238]
[1645183417351,0.19797318,40432.0,40426.0,0.0105]
[1645183417553,0.19797318,40432.0,40428.0,0.00035239]
[1645183418252,0.19821523,40432.0,40428.0,0.00035239]
[1645183418653,0.19821523,40432.0,40428.0,0.061852]
[1645183418855,0.00024205,40432.0,40428.0,0.11220439]
[1645183419756,0.00024205,40432.0,40428.0,0.05]
[1645183419757,0.26472077,40430.0,40428.0,0.05]
[1645183420000,0.26472077,40430.0,40428.0,0.05035239]
[1645183420303,0.26472077,40430.0,40428.0,0.00035239]
[1645183420700,0.26472077,40430.0,40428.0,0.05035239]
[1645183421102,0.26472077,40430.0,40428.0,0.05]
[1645183421402,0.00024205,40432.0,40428.0,0.05]
[1645183422400,0.25110406,40432.0,40428.0,0.05035239]
[1645183422601,0.35035895,40430.0,40428.0,0.05235239]
[1645183422802,0.35035895,40430.0,40429.0,0.00336792]
[1645183423001,0.25110406,40432.0,40429.0,0.00336792]
[1645183423201,0.25110406,40432.0,40430.0,0.061853]
[1645183423502,0.25110406,40432.0,40430.0,0.03864807]
[1645183423951,0.00024205,40432.0,40430.0,0.03864807]
[1645183426253,0.00040933,40435.0,40430.0,0.03864807]
[1645183426953,0.25287019,40432.0,40430.0,0.03864807]
[1645183427417,0.2549373,40436.0,40425.0,0.002]
[1645183427418,0.51328189,40431.0,40425.0,0.002]
[1645183427609,0.51328189,40431.0,40418.0,0.05]
[1645183427610,0.65835529,40430.0,40418.0,0.05]
[1645183427810,0.1,40427.0,40414.0,0.0083]
[1645183428010,0.3,40426.0,40414.0,0.0083]
[1645183428305,0.3,40426.0,40410.0,0.1]
[1645183428306,0.25902963,40417.0,40410.0,0.1]
[1645183428507,0.26931274,40420.0,40419.0,0.30297901]
[1645183428707,0.25983872,40420.0,40419.0,0.30297901]
[1645183430011,0.58337916,40420.0,40419.0,0.30297901]
[1645183430210,2.38504244,40420.0,40419.0,0.30297901]
[1645183430608,2.38504244,40420.0,40419.0,0.30497901]
[1645183430808,2.43454244,40420.0,40419.0,0.30497901]
[1645183431452,0.63287916,40420.0,40419.0,0.30497901]
[1645183431653,0.93287916,40420.0,40419.0,0.30497901]
[1645183432052,0.93287916,40420.0,40419.0,0.30297901]
[1645183432252,0.88337916,40420.0,40419.0,0.30297901]
[1645183432453,0.32354044,40420.0,40419.0,0.30297901]
[1645183432656,0.32354044,40420.0,40419.0,0.30397901]
[1645183432853,0.62354044,40420.0,40419.0,0.35397901]
[1645183433053,0.72354044,40420.0,40419.0,0.35397901]
[1645183433255,0.67304044,40420.0,40419.0,0.35941702]
[1645183433452,0.67304044,40420.0,40419.0,0.35950495]
[1645183433453,0.99323759,40420.0,40419.0,0.35950495]
[1645183433652,0.89323759,40420.0,40419.0,0.35950495]
[1645183433853,0.99323759,40420.0,40419.0,0.35950495]
[1645183434053,0.89323759,40420.0,40419.0,0.35850495]
[1645183434652,0.89323759,40420.0,40419.0,0.35950495]
[1645183435503,0.0495,40420.0,40419.0,0.35950495]
[1645183435705,0.0094,40421.0,40419.0,0.35950495]
[1645183435904,0.001,40425.0,40419.0,0.35950495]
[1645183436408,0.38935853,40424.0,40419.0,0.35950495]
[1645183436605,0.38935853,40424.0,40419.0,0.35850495]
[1645183436803,0.38935853,40424.0,40420.0,0.00035083]
[1645183437003,0.48935853,40424.0,40420.0,0.00035083]
[1645183437203,0.38935853,40424.0,40420.0,0.00035083]
[1645183437505,0.5153065,40423.0,40420.0,0.00035083]
[1645183437704,0.9648065,40423.0,40420.0,0.00035083]
[1645183437908,0.00066439,40420.0,40419.0,0.30306694]
[1645183438102,0.00066439,40420.0,40419.0,0.30341778]
[1645183438503,0.00066439,40420.0,40419.0,0.30332985]
[1645183439154,0.00059126,40420.0,40419.0,0.35297901]
[1645183440952,0.00059126,40420.0,40419.0,0.35397901]
[1645183442404,0.00059126,40420.0,40419.0,0.35297901]
[1645183442605,0.00127486,40420.0,40419.0,0.35297901]
[1645183443208,0.00127486,40420.0,40419.0,0.35397901]
[1645183443404,0.00127486,40420.0,40419.0,0.35406694]
[1645183444602,0.27353684,40420.0,40419.0,0.35406694]
[1645183445103,0.27353684,40420.0,40419.0,0.35306694]
[1645183445306,0.00127486,40420.0,40419.0,0.35306694]
[1645183445512,0.00127486,40420.0,40419.0,0.55256694]
[1645183445711,0.00127486,40420.0,40419.0,0.45256694]
[1645183445910,7.471e-05,40421.0,40419.0,0.45256694]
[1645183446161,0.00040903,40434.0,40421.0,0.12371]
[1645183446354,0.28486521,40434.0,40422.0,0.0495]
[1645183446554,0.28527424,40434.0,40422.0,0.0495]
[1645183447555,0.28486521,40434.0,40423.0,0.061855]
[1645183447754,0.2852743,40434.0,40427.0,0.05]
[1645183448154,1.75465305,40432.0,40427.0,0.02538052]
[1645183448553,1.96572437,40432.0,40427.0,0.08723952]
[1645183448953,1.96572437,40432.0,40427.0,0.08759029]
[1645183449152,0.21107132,40432.0,40427.0,0.08759029]
[1645183449353,0.51107132,40432.0,40427.0,0.08759029]
[1645183449753,0.28527431,40434.0,40427.0,0.14945018]
[1645183450005,0.28486521,40434.0,40427.0,0.14909941]
[1645183450205,0.28486521,40434.0,40428.0,0.061857]
[1645183450206,0.28527431,40434.0,40428.0,0.061857]
[1645183450404,0.0004091,40434.0,40428.0,0.061857]
[1645183450805,0.0004091,40434.0,40427.0,0.13959029]
[1645183451305,0.00040911,40434.0,40428.0,0.00035076]
[1645183451506,0.3027653,40434.0,40428.0,0.00035076]
[1645183452405,0.30235619,40434.0,40427.0,0.08723952]
[1645183452609,0.25350463,40431.0,40428.0,0.0003208]
[1645183452807,0.3,40430.0,40429.0,0.00166076]
[1645183453009,0.3,40430.0,40429.0,0.00335264]
[1645183453010,2.51664007,40430.0,40429.0,0.00335264]
[1645183454056,0.3,40430.0,40429.0,0.00335264]
[1645183454458,0.25350463,40431.0,40429.0,0.00335264]
[1645183455059,0.3,40430.0,40429.0,0.00335264]
[1645183455359,0.25350463,40431.0,40429.0,0.00335264]
[1645183456059,0.3,40430.0,40429.0,0.00335264]
[1645183456264,0.25350463,40431.0,40429.0,0.00335264]
[1645183456661,0.25350463,40431.0,40429.0,0.00435264]
[1645183456862,0.25350463,40431.0,40429.0,0.12807564]
[1645183456863,0.24850463,40431.0,40429.0,0.12807564]
[1645183457061,0.55835529,40433.0,40429.0,0.17807564]
[1645183457510,0.3,40433.0,40429.0,0.17807564]
[1645183457910,0.3,40433.0,40430.0,0.00189525]
[1645183458110,0.53147305,40433.0,40430.0,0.00189525]
[1645183458316,0.53147305,40433.0,40430.0,0.00198864]
[1645183458713,0.53347305,40433.0,40430.0,0.06384964]
[1645183459714,0.302,40433.0,40430.0,0.06384964]
[1645183460116,0.002,40433.0,40430.0,0.06384964]
[1645183460714,0.56071148,40434.0,40430.0,0.06484964]
[1645183460914,0.56110192,40434.0,40430.0,0.06484964]
[1645183461364,0.30274663,40434.0,40430.0,0.06484964]
[1645183461567,0.00039044,40434.0,40430.0,0.06484964]
[1645183461964,0.25835529,40436.0,40430.0,0.06384964]
[1645183462365,0.00039044,40434.0,40430.0,0.06384964]
[1645183462764,0.00039044,40434.0,40430.0,0.06484964]
[1645183462964,0.00039044,40434.0,40432.0,0.00692857]
[1645183463165,0.25835529,40436.0,40434.0,0.061859]
[1645183464176,0.26326676,40435.0,40434.0,0.061859]
[1645183464369,0.26326676,40435.0,40432.0,0.00702171]
[1645183464567,0.52162205,40435.0,40432.0,0.06888271]
[1645183464766,0.25835529,40434.0,40432.0,0.06888271]
[1645183465006,0.52162205,40435.0,40432.0,0.06888271]
[1645183465806,0.52162205,40435.0,40432.0,0.00702171]
[1645183466912,0.3,40434.0,40432.0,0.00702171]
[1645183467207,0.52162205,40435.0,40432.0,0.00702171]
[1645183467808,0.52162205,40435.0,40432.0,0.06887971]
[1645183468008,0.00082627,40434.0,40432.0,0.06195114]
[1645183468209,0.00082627,40434.0,40429.0,0.10783242]
[1645183468408,0.00082627,40434.0,40429.0,0.15783242]
[1645183469473,0.00121625,40434.0,40430.0,0.061861]
[1645183469869,0.00121625,40434.0,40429.0,0.15783242]
[1645183470370,0.00082627,40434.0,40429.0,0.15783242]
[1645183470571,0.00122276,40434.0,40429.0,0.15783242]
[1645183470769,0.55957805,40434.0,40429.0,0.15783242]
[1645183471169,0.6337735,40434.0,40429.0,0.15783242]
[1645183471373,0.2183087,40433.0,40429.0,0.10783242]
[1645183471572,0.21803606,40433.0,40429.0,0.10783242]
[1645183471770,0.6337735,40434.0,40429.0,0.10783242]
[1645183472609,0.6337735,40434.0,40429.0,0.111861]
[1645183472610,0.3337735,40434.0,40429.0,0.111861]
[1645183472813,0.07553799,40434.0,40429.0,0.111861]
[1645183473009,0.07593448,40434.0,40429.0,0.173718]
[1645183473208,0.07593448,40434.0,40429.0,0.111861]
[1645183473412,0.63428977,40434.0,40429.0,0.111861]
[1645183473712,0.25835529,40433.0,40431.0,0.00012126]
[1645183473912,0.07593448,40434.0,40431.0,0.00012126]
[1645183473913,0.25835529,40432.0,40431.0,0.00012126]
[1645183474110,0.48556434,40434.0,40431.0,0.00012126]
[1645183474312,0.48595353,40434.0,40431.0,0.00012126]
[1645183475213,0.48556434,40434.0,40431.0,0.00012126]
[1645183475412,0.38556434,40434.0,40431.0,0.00012126]
[1645183476261,0.07553799,40434.0,40431.0,0.00012126]
[1645183476857,0.07553799,40434.0,40431.0,0.00112126]
[1645183477256,0.07553799,40434.0,40431.0,0.05112126]
[1645183478055,0.07553799,40434.0,40431.0,0.05012126]
[1645183478357,0.07553799,40434.0,40433.0,0.00012091]
[1645183478556,0.20810306,40434.0,40433.0,9.1e-07]
[1645183478760,0.20810306,40434.0,40428.0,0.00198723]
[1645183478761,5.909e-05,40432.0,40428.0,0.00170006]
[1645183478959,0.30961412,40430.0,40428.0,0.00198723]
[1645183479358,0.23505422,40429.0,40428.0,0.00198723]
[1645183479562,0.54466834,40429.0,40428.0,0.00198723]
[1645183480007,0.54466834,40429.0,40428.0,0.00170006]
[1645183480208,0.23505422,40429.0,40428.0,0.00170006]
[1645183480407,0.54466834,40429.0,40428.0,0.00170006]
[1645183480809,0.64466834,40429.0,40428.0,0.00170006]
[1645183481511,0.40961412,40429.0,40428.0,0.00170006]
[1645183481710,0.30961412,40430.0,40428.0,0.00170006]
[1645183481911,0.40961412,40430.0,40428.0,0.00170006]
[1645183482510,0.30961412,40429.0,40428.0,0.00170006]
[1645183483012,0.40961412,40430.0,40428.0,0.00170006]
[1645183483211,0.40961412,40430.0,40428.0,0.00886096]
[1645183483411,0.40961412,40430.0,40428.0,0.00897066]
[1645183483670,0.39341636,40431.0,40428.0,0.00897066]
[1645183483861,0.39341636,40431.0,40428.0,0.13269266]
[1645183484060,0.30961412,40430.0,40428.0,0.13269266]
[1645183484262,0.39341636,40431.0,40428.0,0.13269266]
[1645183484665,0.30961412,40430.0,40428.0,0.13269266]
[1645183484861,0.39341636,40431.0,40428.0,0.13269266]
[1645183485060,0.30961412,40430.0,40428.0,0.13269266]
[1645183486760,0.30961412,40430.0,40428.0,0.13369266]
[1645183487914,0.08380224,40431.0,40428.0,0.12853023]
[1645183488314,0.08380224,40431.0,40428.0,0.07981064]
[1645183488715,0.08380224,40431.0,40428.0,0.08081064]
[1645183488914,0.08380224,40431.0,40428.0,0.07981064]
[1645183489316,0.39341636,40431.0,40428.0,0.07981064]
[1645183489618,0.39341636,40431.0,40428.0,0.0011097]
[1645183489825,0.39341636,40431.0,40428.0,0.0511097]
[1645183490219,0.39341636,40431.0,40428.0,0.0501097]
[1645183490619,0.39341636,40431.0,40429.0,0.061861]
[1645183491018,0.08380224,40431.0,40429.0,0.061861]
[1645183491260,0.39341636,40431.0,40429.0,0.061861]
[1645183493158,0.39438004,40431.0,40430.0,0.00445617]
[1645183493360,0.39438004,40431.0,40430.0,0.00456552]
[1645183494561,0.08476592,40431.0,40430.0,0.00456552]
[1645183494762,0.08476592,40431.0,40430.0,0.00556552]
[1645183495413,0.39438004,40431.0,40430.0,0.00556552]
[1645183495613,0.08476592,40431.0,40429.0,0.01959977]
[1645183496414,0.39438004,40431.0,40429.0,0.01959977]
[1645183496815,0.39438004,40431.0,40429.0,0.02059977]
[1645183497215,0.08476592,40431.0,40429.0,0.02059977]
[1645183497916,0.39438004,40431.0,40429.0,0.02059977]
[1645183498215,0.58834094,40431.0,40429.0,0.01842652]
[1645183498416,0.39586146,40431.0,40430.0,9.841e-05]
[1645183498860,0.08624734,40431.0,40430.0,9.841e-05]
[1645183499857,0.39586146,40431.0,40430.0,9.841e-05]
[1645183500461,0.08624734,40431.0,40430.0,9.841e-05]
[1645183500862,0.08624734,40431.0,40430.0,0.00109841]
[1645183500863,0.07664734,40431.0,40430.0,0.00109841]
[1645183502061,5.909e-05,40432.0,40431.0,0.27697967]
[1645183502261,5.909e-05,40432.0,40431.0,0.46849967]
[1645183502509,5.909e-05,40432.0,40431.0,0.51849967]
[1645183502709,5.909e-05,40432.0,40431.0,0.52719967]
[1645183502912,5.909e-05,40432.0,40431.0,0.52919967]
[1645183503107,5.909e-05,40432.0,40431.0,0.72919967]
[1645183503508,5.909e-05,40432.0,40431.0,0.59919967]
[1645183504308,5.909e-05,40432.0,40431.0,0.59719967]
[1645183506562,5.909e-05,40432.0,40431.0,0.79383873]
[1645183506759,5.909e-05,40432.0,40431.0,0.59719967]
[1645183506959,5.909e-05,40432.0,40431.0,0.7938108]
[1645183507361,5.909e-05,40432.0,40431.0,0.7948108]
[1645183507763,5.909e-05,40432.0,40431.0,0.8948108]
[1645183508167,0.00142175,40432.0,40431.0,0.8948108]
[1645183508363,0.00142175,40432.0,40431.0,0.89490903]
[1645183508764,0.07418376,40441.0,40434.0,0.185521]
[1645183508965,0.07418376,40441.0,40434.0,0.12368]
[1645183509165,0.07418376,40441.0,40434.0,0.17368]
[1645183509365,0.07418376,40441.0,40435.0,0.05]
[1645183510413,0.07418376,40441.0,40436.0,0.185518]
[1645183510613,0.07418376,40441.0,40436.0,0.30920277]
[1645183510817,0.07418376,40441.0,40437.0,0.17368611]
[1645183511014,0.07418376,40441.0,40438.0,0.111843]
[1645183511213,0.07418376,40441.0,40438.0,0.173686]
[1645183512117,0.07418376,40441.0,40438.0,0.473686]
[1645183512316,0.07418376,40441.0,40439.0,0.06184188]
[1645183512515,0.07418376,40441.0,40439.0,0.11184188]
[1645183512715,0.00040906,40442.0,40440.0,0.05]
[1645183512917,0.00040906,40442.0,40441.0,0.123661]
[1645183513118,0.00040906,40442.0,40441.0,0.297321]
[1645183513763,0.0102549,40451.0,40444.0,0.061832]
[1645183513964,0.00163598,40450.0,40444.0,0.061832]
[1645183514166,0.00163598,40450.0,40444.0,0.161832]
[1645183514363,0.32975154,40449.0,40445.0,0.12366]
[1645183514763,0.32975154,40449.0,40446.0,0.05]
[1645183514963,0.0102549,40451.0,40446.0,0.11183276]
[1645183514964,0.0003549,40451.0,40446.0,0.11183276]
[1645183515167,0.00040904,40449.0,40447.0,0.061826]
[1645183515367,0.00040904,40449.0,40447.0,0.123655]
[1645183515971,0.0003549,40450.0,40447.0,0.173655]
[1645183516165,0.0003549,40451.0,40447.0,0.123655]
[1645183516365,0.00040904,40450.0,40447.0,0.123655]
[1645183516868,0.00040904,40450.0,40447.0,0.061829]
[1645183517064,0.00076394,40450.0,40448.0,0.061824]
[1645183517265,0.08157218,40455.0,40448.0,0.061824]
[1645183517266,0.0003549,40454.0,40450.0,0.123644]
[1645183517515,0.00025905,40451.0,40450.0,0.123644]
[1645183517714,0.00025905,40451.0,40450.0,0.173644]
[1645183518213,0.00025905,40451.0,40450.0,0.123644]
[1645183518413,0.3342505,40456.0,40450.0,0.123644]
[1645183518414,0.0003549,40454.0,40450.0,0.123644]
[1645183518619,0.0003549,40452.0,40450.0,0.123644]
[1645183518815,0.3342505,40456.0,40450.0,0.173644]
[1645183518816,0.00025904,40453.0,40450.0,0.173644]
[1645183519615,0.0003549,40453.0,40450.0,0.173644]
[1645183519816,0.0096,40456.0,40451.0,0.06182314]
[1645183519817,0.00025904,40454.0,40451.0,0.06182314]
[1645183520216,0.00061394,40454.0,40451.0,0.06182314]
[1645183520416,0.00025904,40454.0,40451.0,0.06182314]
[1645183520817,0.0003549,40455.0,40451.0,0.06182314]
[1645183521017,0.00025903,40455.0,40451.0,0.06182314]
[1645183521266,0.00061393,40455.0,40451.0,0.06282314]
[1645183521459,0.00025903,40455.0,40451.0,0.06282314]
[1645183522058,0.21801128,40453.0,40451.0,0.06282314]
[1645183522259,0.00025903,40455.0,40451.0,0.06282314]
[1645183522458,0.0003549,40454.0,40451.0,0.06282314]
[1645183522659,0.00025903,40455.0,40451.0,0.06282314]
[1645183522660,0.00061393,40455.0,40451.0,0.06282314]
[1645183522858,0.00061393,40455.0,40451.0,0.001]
[1645183522859,0.00025903,40455.0,40451.0,0.001]
[1645183523060,0.00061393,40455.0,40452.0,0.00424349]
[1645183523261,0.24578089,40454.0,40453.0,0.06192337]
[1645183523659,0.24578089,40454.0,40453.0,0.05573104]
[1645183524360,0.24578089,40454.0,40453.0,9.437e-05]
[1645183526216,0.24578089,40454.0,40452.0,0.00644297]
[1645183526217,0.24578089,40454.0,40452.0,7.34e-06]
[1645183526425,0.19020677,40453.0,40452.0,7.34e-06]
[1645183526619,0.29056167,40453.0,40452.0,7.34e-06]
[1645183526818,0.19056167,40453.0,40452.0,7.34e-06]
[1645183527415,0.18946236,40453.0,40452.0,7.34e-06]
[1645183527918,0.0003549,40453.0,40452.0,7.34e-06]
[1645183528116,0.34713579,40454.0,40448.0,0.001]
[1645183528316,0.22735888,40449.0,40448.0,0.001]
[1645183528758,0.22735888,40449.0,40442.0,0.18551914]
[1645183529260,0.22735888,40449.0,40444.0,0.061839]
[1645183529461,0.00025905,40448.0,40444.0,0.061839]
[1645183529658,0.00061395,40448.0,40444.0,0.061839]
[1645183530459,0.0003549,40448.0,40444.0,0.061839]
[1645183530660,0.19287545,40447.0,40444.0,0.061839]
[1645183531062,0.19323035,40447.0,40444.0,0.061839]
[1645183531261,0.0003549,40447.0,40444.0,0.061839]
[1645183531467,0.00061395,40448.0,40444.0,0.063839]
[1645183531763,0.0003549,40448.0,40444.0,0.063839]
[1645183532062,0.00024518,40448.0,40444.0,0.063839]
[1645183532264,0.00060008,40448.0,40444.0,0.063839]
[1645183532511,0.00024518,40448.0,40444.0,0.002]
[1645183532711,0.00060008,40448.0,40444.0,0.06184]
[1645183533013,0.00164996,40447.0,40444.0,0.06184]
[1645183533418,0.00200486,40447.0,40446.0,0.0001077]
[1645183533615,0.00164996,40447.0,40446.0,0.0001077]
[1645183535217,0.00164996,40447.0,40446.0,0.0011077]
[1645183536959,0.00164996,40447.0,40446.0,0.0001077]
[1645183537160,0.00164996,40447.0,40446.0,0.0011077]
[1645183537361,0.00186673,40449.0,40446.0,0.0011077]
[1645183537362,0.2742,40456.0,40448.0,0.061832]
[1645183537559,0.1,40456.0,40448.0,0.061832]
[1645183537760,0.44361136,40459.0,40446.0,0.0011077]
[1645183537960,0.00486031,40447.0,40446.0,0.0011077]
[1645183539164,0.00586031,40447.0,40446.0,0.0011077]
[1645183541015,0.00486031,40447.0,40446.0,0.0001077]
[1645183542419,0.00378423,40447.0,40446.0,0.0001077]
[1645183543118,0.64427881,40453.0,40446.0,0.00839067]
[1645183543319,0.33637358,40453.0,40447.0,0.06160387]
[1645183543962,0.33637358,40453.0,40448.0,0.00025889]
[1645183544963,0.33637358,40453.0,40447.0,0.06160387]
[1645183545163,0.33637358,40453.0,40448.0,0.00125889]
[1645183545365,0.32967458,40453.0,40448.0,0.00125889]
[1645183546064,0.0099,40454.0,40448.0,0.001]
[1645183546265,0.0099,40454.0,40448.0,0.00125889]
[1645183546464,0.0099,40454.0,40448.0,0.00025889]
[1645183547067,0.34247565,40454.0,40448.0,0.00125889]
[1645183547266,0.34247565,40454.0,40448.0,0.001]
[1645183547509,0.34247565,40454.0,40449.0,0.00025888]
[1645183548108,0.0099,40454.0,40450.0,0.0060544]
[1645183548311,0.0099,40454.0,40451.0,0.061832]
[1645183548509,0.19706655,40456.0,40451.0,0.061832]
[1645183549213,0.19706655,40456.0,40450.0,0.00638202]
[1645183549214,0.25216146,40455.0,40450.0,0.00439344]
[1645183549420,0.25216146,40455.0,40450.0,0.12602806]
[1645183549421,0.15,40451.0,40450.0,0.12602806]
[1645183549612,0.15,40451.0,40450.0,0.1257859]
[1645183549912,0.15,40451.0,40450.0,0.00236305]
[1645183550912,0.15,40451.0,40450.0,0.0021209]
[1645183552967,0.15,40451.0,40450.0,0.00613354]
[1645183555112,0.15,40451.0,40450.0,0.00713354]
[1645183556112,0.15,40451.0,40450.0,0.00613354]
[1645183558013,0.15091644,40451.0,40450.0,8.546e-05]
[1645183558214,0.15185358,40451.0,40450.0,8.546e-05]
[1645183558416,0.00185358,40451.0,40449.0,0.17375146]
[1645183559068,0.00185358,40451.0,40449.0,0.2355778]
[1645183559268,0.00185358,40451.0,40449.0,0.2365778]
[1645183559872,0.00185358,40451.0,40449.0,0.12475146]
[1645183559873,0.15185358,40451.0,40449.0,0.12475146]
[1645183560071,0.00185358,40451.0,40449.0,0.12475146]
[1645183560471,0.00185358,40451.0,40449.0,0.12375146]
[1645183561273,0.00185358,40451.0,40449.0,0.12475146]
[1645183562518,0.00185358,40451.0,40449.0,0.18557833]
[1645183563020,0.00293403,40451.0,40449.0,0.12375146]
[1645183565222,0.00293403,40451.0,40449.0,0.12475146]
[1645183566462,0.00293403,40451.0,40449.0,0.12375146]
[1645183567263,0.00293403,40451.0,40449.0,0.12475146]
[1645183568464,0.00293403,40451.0,40449.0,0.12375146]
[1645183569465,0.00293403,40451.0,40449.0,0.12363167]
[1645183572920,0.00293403,40451.0,40449.0,0.17363167]
[1645183573120,0.00035313,40452.0,40450.0,0.00803993]
[1645183573320,0.07416129,40453.0,40450.0,0.00803993]
[1645183573522,0.00035313,40452.0,40450.0,0.06995339]
[1645183573770,0.07416129,40453.0,40450.0,0.06995339]
[1645183573966,0.00035313,40452.0,40450.0,0.06995339]
[1645183574167,0.07451442,40453.0,40450.0,0.06995339]
[1645183574367,0.00035313,40452.0,40450.0,0.06995339]
[1645183574567,0.22416129,40453.0,40450.0,0.06995339]
[1645183574766,0.00035313,40452.0,40450.0,0.06995339]
[1645183574966,0.07451442,40453.0,40450.0,0.06995339]
[1645183575170,0.00035313,40452.0,40450.0,0.07095339]
[1645183575366,0.07416129,40453.0,40450.0,0.07095339]
[1645183576868,0.07416129,40453.0,40450.0,0.13277639]
[1645183577066,0.07416129,40453.0,40450.0,0.06995339]
[1645183577414,0.07416129,40453.0,40450.0,0.07095339]
[1645183578214,0.07416129,40453.0,40452.0,0.00204808]
[1645183578614,0.07416129,40453.0,40452.0,0.00213319]
[1645183580016,0.37416129,40453.0,40452.0,0.00213319]
[1645183580215,0.52416129,40453.0,40452.0,0.00213319]
[1645183580617,0.37416129,40453.0,40452.0,0.00213319]
[1645183580816,0.52416129,40453.0,40452.0,0.00213319]
[1645183581272,0.52416129,40453.0,40452.0,0.00313319]
[1645183581467,0.22416129,40453.0,40452.0,0.00313319]
[1645183582068,0.52416129,40453.0,40452.0,0.00313319]
[1645183582268,0.37416129,40453.0,40452.0,0.00313319]
[1645183582468,0.07416129,40453.0,40452.0,0.00313319]
[1645183583077,0.07416129,40453.0,40452.0,0.00630128]
[1645183585724,0.00035313,40455.0,40452.0,0.00630128]
[1645183585917,0.30035313,40456.0,40452.0,0.00630128]
[1645183586118,0.00035313,40455.0,40452.0,0.00630128]
[1645183586418,0.00035313,40456.0,40452.0,0.00630128]
[1645183587019,0.21207344,40457.0,40452.0,0.00630128]
[1645183587020,0.21183,40457.0,40452.0,0.00630128]
[1645183587219,0.00035313,40456.0,40452.0,0.00654475]
[1645183587521,0.32119619,40455.0,40452.0,0.00654475]
[1645183588119,0.00080827,40453.0,40452.0,8.511e-05]
[1645183588690,0.00080827,40453.0,40451.0,0.00024347]
[1645183588885,0.0011614,40453.0,40451.0,0.00024347]
[1645183589284,0.0011614,40453.0,40451.0,0.001]
[1645183590386,0.0011614,40453.0,40450.0,0.06413134]
[1645183590587,0.0011614,40453.0,40450.0,0.06388786]
[1645183590785,0.0011614,40453.0,40450.0,0.06413134]
[1645183591589,0.00123046,40454.0,40450.0,0.06413134]
[1645183591788,0.00123046,40454.0,40450.0,0.06388786]
[1645183592415,0.05123046,40454.0,40450.0,0.06388786]
[1645183593017,0.00139081,40452.0,40450.0,0.06388786]
[1645183593221,0.00139081,40452.0,40450.0,0.06413134]
[1645183594219,0.00139081,40452.0,40450.0,0.06388786]
[1645183597774,0.00139081,40452.0,40450.0,0.00205986]
[1645183597775,0.15,40451.0,40450.0,0.00205986]
[1645183597974,0.15136895,40451.0,40450.0,0.00205986]
[1645183599922,0.50136895,40451.0,40450.0,0.00205986]
[1645183600826,0.45136895,40451.0,40450.0,0.00205986]
[1645183601827,0.50136895,40451.0,40450.0,0.00205986]
[1645183602228,0.35136895,40451.0,40450.0,0.00205986]
[1645183602627,0.30136895,40451.0,40450.0,0.00205986]
[1645183603427,0.3,40451.0,40450.0,0.01085799]
[1645183608019,0.3,40451.0,40450.0,0.0064922]
[1645183614271,0.3,40451.0,40450.0,0.00576812]
[1645183615717,0.69473035,40452.0,40450.0,0.00576812]
[1645183616118,0.64523035,40452.0,40450.0,0.00576812]
[1645183616316,0.3,40451.0,40450.0,0.00576812]
[1645183618219,0.3015753,40451.0,40450.0,9.561e-05]
[1645183618419,0.4015753,40451.0,40450.0,9.561e-05]
[1645183619874,0.1515753,40451.0,40450.0,9.561e-05]
[1645183620178,0.0015753,40451.0,40450.0,9.561e-05]
[1645183621377,0.0015753,40451.0,40450.0,0.00209561]
[1645183622625,0.0015753,40451.0,40450.0,9.561e-05]
[1645183623027,0.00369498,40451.0,40450.0,9.561e-05]
[1645183623325,0.00369498,40451.0,40450.0,0.001]
[1645183624127,0.00369498,40451.0,40449.0,0.06193161]
[1645183626568,0.00369498,40451.0,40449.0,0.06293161]
[1645183633224,0.0007791,40451.0,40450.0,0.00669666]
[1645183633425,0.0007791,40451.0,40450.0,0.00679227]
[1645183634866,0.00035136,40455.0,40451.0,0.0015582]
[1645183635071,0.31631632,40456.0,40452.0,0.123656]
[1645183635267,0.00035136,40455.0,40452.0,0.123656]
[1645183635467,0.31596496,40456.0,40452.0,0.123656]
[1645183635667,0.31631632,40456.0,40452.0,0.123656]
[1645183635871,0.31131632,40456.0,40452.0,0.123656]
[1645183636067,0.00035136,40456.0,40452.0,0.123656]
[1645183636268,0.00035136,40457.0,40452.0,0.12389932]
[1645183636467,0.00024329,40457.0,40452.0,0.12389932]
[1645183637269,0.00035136,40458.0,40452.0,0.123656]
[1645183637515,0.00024329,40457.0,40452.0,0.12489932]
[1645183638316,0.00024329,40457.0,40454.0,9.491e-05]
[1645183638514,0.00035136,40458.0,40454.0,9.491e-05]
[1645183638715,0.00955136,40459.0,40454.0,9.491e-05]
[1645183639018,0.00024329,40457.0,40454.0,9.491e-05]
[1645183639617,0.26133685,40457.0,40454.0,0.06192291]
[1645183639816,0.26109356,40457.0,40454.0,0.06192291]
[1645183640320,0.26144492,40457.0,40454.0,0.06192291]
[1645183640716,0.00035136,40457.0,40454.0,0.06192291]
[1645183640917,0.00035136,40458.0,40454.0,0.06192291]
[1645183641185,0.00024329,40458.0,40454.0,0.06192291]
[1645183641376,0.00059465,40458.0,40454.0,0.06192291]
[1645183641575,0.00024329,40458.0,40454.0,0.06192291]
[1645183641780,0.00059465,40458.0,40454.0,0.06192291]
[1645183641975,0.00024329,40458.0,40454.0,0.06192291]
[1645183642175,0.00955136,40459.0,40454.0,0.06192291]
[1645183642176,0.00768912,40459.0,40454.0,0.06192291]
[1645183642376,0.00024329,40458.0,40454.0,0.06192291]
[1645183642979,0.00024329,40458.0,40456.0,0.00931874]
[1645183643176,0.00024329,40458.0,40456.0,0.13295974]
[1645183643380,0.00768912,40459.0,40456.0,0.1330543]
[1645183643578,0.0079324,40459.0,40456.0,0.1330543]
[1645183643978,0.00024328,40459.0,40456.0,0.1330543]